bitfinex-derivatives/quotes_BTCF0:USTF0_20250809
["timestamp","ask_amount","ask_price","bid_price","bid_amount"]
[1754724105714,0.38174671,116950.0,116940.0,1.74222051]
[1754724105911,0.07274,116950.0,116940.0,2.00305722]
[1754724106518,0.33357671,116950.0,116940.0,2.00305722]
[1754724107014,0.07274,116950.0,116940.0,2.00305722]
[1754724107214,0.33357671,116950.0,116940.0,2.00305722]
[1754724108322,0.07274,116950.0,116940.0,2.00305722]
[1754724108511,0.33357671,116950.0,116940.0,2.0796534]
[1754724108713,0.33357671,116950.0,116940.0,1.9723934]
[1754724109011,0.33357671,116950.0,116940.0,1.6115934]
[1754724109212,0.33357671,116950.0,116940.0,1.9723934]
[1754724110008,0.33357671,116950.0,116940.0,1.45071998]
[1754724110213,0.33357671,116950.0,116940.0,1.9723934]
[1754724110619,0.07274,116950.0,116940.0,1.9723934]
[1754724110810,0.33357671,116950.0,116940.0,1.9723934]
[1754724111420,0.05054,116950.0,116940.0,1.9723934]
[1754724112416,0.31137671,116950.0,116940.0,1.9723934]
[1754724113016,0.05054,116950.0,116940.0,1.9723934]
[1754724113319,0.31137671,116950.0,116940.0,1.9723934]
[1754724114117,0.31137671,116950.0,116940.0,1.89579722]
[1754724114617,0.31137671,116950.0,116940.0,2.00305722]
[1754724117413,0.31137671,116950.0,116940.0,1.89579722]
[1754724117616,0.34560671,116950.0,116940.0,1.89579722]
[1754724118123,0.35954671,116950.0,116940.0,1.89579722]
[1754724119824,0.35954671,116950.0,116940.0,1.97240394]
[1754724120124,0.12091,116950.0,116940.0,1.97240394]
[1754724120321,0.38174671,116950.0,116940.0,1.97240394]
[1754724120823,0.12091,116950.0,116940.0,1.97240394]
[1754724121020,0.38174671,116950.0,116940.0,1.97240394]
[1754724122023,0.12091,116950.0,116940.0,1.97240394]
[1754724122226,0.38174671,116950.0,116940.0,1.97240394]
[1754724123120,0.38174671,116950.0,116940.0,1.45073052]
[1754724123319,0.38174671,116950.0,116940.0,1.97240394]
[1754724127333,0.12091,116950.0,116940.0,1.97240394]
[1754724127628,0.38174671,116950.0,116940.0,1.45073052]
[1754724127830,0.38174671,116950.0,116940.0,1.97240394]
[1754724128630,0.38174671,116950.0,116940.0,1.45073052]
[1754724128930,0.12091,116950.0,116940.0,1.97240394]
[1754724129231,0.38174671,116950.0,116940.0,1.97240394]
[1754724129727,0.38174671,116950.0,116940.0,2.00305722]
[1754724134934,0.38174671,116950.0,116940.0,1.4813838]
[1754724135134,0.38174671,116950.0,116940.0,2.00305722]
[1754724135431,0.38174671,116950.0,116940.0,1.74222051]
[1754724135632,0.12091,116950.0,116940.0,1.74222051]
[1754724135835,0.38174671,116950.0,116940.0,1.74222051]
[1754724136735,0.38174671,116950.0,116940.0,1.4813838]
[1754724136935,0.38174671,116950.0,116940.0,1.74222051]
[1754724137136,0.38174671,116950.0,116940.0,1.4813838]
[1754724137336,0.38174671,116950.0,116940.0,1.74222051]
[1754724138236,0.12091,116950.0,116940.0,1.74222051]
[1754724138540,0.38174671,116950.0,116940.0,2.00305722]
[1754724140637,0.12091,116950.0,116940.0,1.4813838]
[1754724140837,0.38174671,116950.0,116940.0,2.00305722]
[1754724141139,0.38174671,116950.0,116940.0,1.4813838]
[1754724141333,0.38174671,116950.0,116940.0,2.00305722]
[1754724143239,0.38174671,116950.0,116940.0,1.4813838]
[1754724143431,0.38174671,116950.0,116940.0,2.00305722]
[1754724144134,0.12091,116950.0,116940.0,0.6998638]
[1754724144342,0.38174671,116950.0,116940.0,1.74194051]
[1754724144640,0.02598,116950.0,116940.0,1.4811038]
[1754724144841,0.28681671,116950.0,116940.0,2.00277722]
[1754724145040,0.34805671,116950.0,116940.0,1.74194051]
[1754724145441,0.38264671,116950.0,116940.0,1.74194051]
[1754724146544,0.38264671,116950.0,116940.0,1.4811038]
[1754724146843,0.38264671,116950.0,116940.0,1.74194051]
[1754724147236,0.38264671,116950.0,116940.0,1.4811038]
[1754724147447,0.38264671,116950.0,116940.0,1.74194051]
[1754724152946,0.12181,116950.0,116940.0,1.74194051]
[1754724153146,0.38264671,116950.0,116940.0,1.63468051]
[1754724153342,0.28681671,116950.0,116940.0,1.89551722]
[1754724154445,0.02598,116950.0,116940.0,1.89551722]
[1754724154650,0.28681671,116950.0,116940.0,1.3738438]
[1754724154949,0.28681671,116950.0,116940.0,1.63468051]
[1754724155350,0.28681671,116950.0,116940.0,1.89551722]
[1754724155537,0.02598,116950.0,116940.0,1.89551722]
[1754724155739,0.28681671,116950.0,116940.0,1.89551722]
[1754724155944,0.28681671,116950.0,116940.0,1.3738438]
[1754724156251,0.28681671,116950.0,116940.0,1.89551722]
[1754724156745,0.28681671,116950.0,116940.0,1.3738438]
[1754724157143,0.28681671,116950.0,116940.0,1.89551722]
[1754724157545,0.28681671,116950.0,116940.0,1.63468051]
[1754724158045,0.35856671,116950.0,116940.0,1.63468051]
[1754724158746,0.35856671,116950.0,116940.0,1.71131511]
[1754724158949,0.38119671,116950.0,116940.0,1.71131511]
[1754724159448,0.38119671,116950.0,116940.0,1.63468051]
[1754724160155,0.38119671,116950.0,116940.0,1.3738438]
[1754724160355,0.38119671,116950.0,116940.0,1.63468051]
[1754724160656,0.38119671,116950.0,116940.0,1.3738438]
[1754724160855,0.38119671,116950.0,116940.0,1.71133835]
[1754724161958,0.12036,116950.0,116940.0,1.71133835]
[1754724162157,0.38119671,116950.0,116940.0,1.71133835]
[1754724162560,0.12036,116950.0,116940.0,1.71133835]
[1754724162755,0.38119671,116950.0,116940.0,1.63468051]
[1754724163459,0.38119671,116950.0,116940.0,1.74194051]
[1754724165056,0.38119671,116950.0,116940.0,2.00277722]
[1754724167263,0.38119671,116950.0,116940.0,1.4811038]
[1754724167451,0.38119671,116950.0,116940.0,1.97217528]
[1754724168661,0.38119671,116950.0,116940.0,1.61137528]
[1754724168864,0.38119671,116950.0,116940.0,1.97217528]
[1754724169062,0.38119671,116950.0,116940.0,1.45050186]
[1754724169263,0.38119671,116950.0,116940.0,1.97217528]
[1754724171262,0.38019671,116950.0,116940.0,1.97217528]
[1754724171964,0.37819671,116950.0,116940.0,1.97217528]
[1754724172557,0.11736,116950.0,116940.0,1.97217528]
[1754724172758,0.37819671,116950.0,116940.0,1.97217528]
[1754724172956,0.37819671,116950.0,116940.0,1.45050186]
[1754724173262,0.37819671,116950.0,116940.0,1.97217528]
[1754724173864,0.11736,116950.0,116940.0,1.97217528]
[1754724174064,0.37819671,116950.0,116940.0,1.97217528]
[1754724174664,0.37819671,116950.0,116940.0,1.61137528]
[1754724174866,0.37819671,116950.0,116940.0,1.97217528]
[1754724177262,0.37819671,116950.0,116940.0,1.89551722]
[1754724177670,0.37819671,116950.0,116940.0,2.00277722]
[1754724179367,0.37819671,116950.0,116940.0,1.64197722]
[1754724179571,0.37819671,116950.0,116940.0,2.00277722]
[1754724181070,0.11736,116950.0,116940.0,2.00277722]
[1754724181271,0.37819671,116950.0,116940.0,2.00277722]
[1754724183074,0.37819671,116950.0,116940.0,1.22153722]
[1754724183265,0.37819671,116950.0,116940.0,2.00393722]
[1754724186372,0.11736,116950.0,116940.0,2.00393722]
[1754724186576,0.37819671,116950.0,116940.0,2.00393722]
[1754724187678,0.37819671,116950.0,116940.0,1.89667722]
[1754724188767,0.11736,116950.0,116940.0,1.97335626]
[1754724188968,0.37819671,116950.0,116940.0,1.97335626]
[1754724189169,0.37819671,116950.0,116940.0,1.89667722]
[1754724190878,0.37819671,116950.0,116940.0,1.3750038]
[1754724191079,0.37819671,116950.0,116940.0,1.89667722]
[1754724191380,0.37819671,116950.0,116940.0,1.97335657]
[1754724193081,0.11736,116950.0,116940.0,1.97335657]
[1754724193280,0.37819671,116950.0,116940.0,1.97335657]
[1754724194686,0.37819671,116950.0,116940.0,1.45168315]
[1754724194887,0.37819671,116950.0,116940.0,1.97335657]
[1754724197476,0.33236671,116950.0,116940.0,0.93011986]
[1754724197679,1.08708672,116950.0,116940.0,0.3390638]
[1754724197871,1.08708672,116950.0,116940.0,1.1205438]
[1754724198066,1.08708672,116950.0,116940.0,1.0132838]
[1754724198277,0.74075671,116950.0,116940.0,1.0132838]
[1754724198579,0.74075671,116950.0,116940.0,1.08996609]
[1754724199675,0.74075671,116950.0,116940.0,1.0132838]
[1754724201284,0.74075671,116950.0,116940.0,1.1205438]
[1754724202284,1.00159342,116950.0,116940.0,0.3390638]
[1754724202477,0.47992,116950.0,116940.0,1.1205438]
[1754724202673,0.74075671,116950.0,116940.0,1.38138051]
[1754724206486,0.47992,116950.0,116940.0,1.38138051]
[1754724206685,0.37995671,116950.0,116940.0,1.38138051]
[1754724207889,0.37995671,116950.0,116940.0,1.1205438]
[1754724208090,0.37995671,116950.0,116940.0,1.38138051]
[1754724208488,0.37995671,116950.0,116940.0,1.35078629]
[1754724208884,0.37995671,116950.0,116940.0,1.08994958]
[1754724211786,0.37995671,116950.0,116940.0,1.0132838]
[1754724212796,0.11912,116950.0,116940.0,1.0132838]
[1754724213095,0.37995671,116950.0,116940.0,1.0132838]
[1754724213492,0.37995671,116950.0,116940.0,1.27412051]
[1754724213693,0.37995671,116950.0,116940.0,1.0132838]
[1754724213895,0.37995671,116950.0,116940.0,1.27412051]
[1754724216491,0.11912,116950.0,116940.0,1.27412051]
[1754724216694,0.11912,116950.0,116940.0,1.35078629]
[1754724216695,0.37995671,116950.0,116940.0,1.35078629]
[1754724217194,0.37995671,116950.0,116940.0,1.27412051]
[1754724217495,0.37995671,116950.0,116940.0,1.38138051]
[1754724217892,0.37995671,116950.0,116940.0,1.1205438]
[1754724218395,0.11912,116950.0,116940.0,1.1205438]
[1754724218595,0.37995671,116950.0,116940.0,1.19721293]
[1754724218892,0.11912,116950.0,116940.0,1.45804964]
[1754724219197,0.37995671,116950.0,116940.0,1.35078964]
[1754724221499,0.28381671,116950.0,116940.0,1.35078964]
[1754724222197,0.37658671,116950.0,116940.0,1.27412051]
[1754724222398,0.32491671,116950.0,116940.0,1.27412051]
[1754724222592,0.33993671,116950.0,116940.0,1.27412051]
[1754724222797,0.37658671,116950.0,116940.0,1.27412051]
[1754724225702,0.37658671,116950.0,116940.0,1.0132838]
[1754724225901,0.37658671,116950.0,116940.0,1.27412051]
[1754724227195,0.26083671,116950.0,116940.0,1.27412051]
[1754724227401,0.28541671,116950.0,116940.0,1.62045782]
[1754724227897,0.28541671,116950.0,116940.0,1.35962111]
[1754724229302,0.28541671,116950.0,116940.0,1.0987844]
[1754724229496,0.32651671,116950.0,116940.0,1.0987844]
[1754724229697,0.37818671,116950.0,116940.0,1.35962111]
[1754724230201,0.37818671,116950.0,116940.0,1.46688111]
[1754724231704,0.11735,116950.0,116940.0,1.46688111]
[1754724231907,0.37818671,116950.0,116940.0,1.46688111]
[1754724232705,0.11735,116950.0,116940.0,1.46688111]
[1754724233002,0.37818671,116950.0,116940.0,1.46688111]
[1754724238011,0.37818671,116950.0,116940.0,1.2060444]
[1754724238211,0.37818671,116950.0,116940.0,1.46688111]
[1754724238707,0.11735,116950.0,116940.0,1.46688111]
[1754724238914,0.37818671,116950.0,116940.0,1.46688111]
[1754724240715,0.49310471,116950.0,116940.0,1.46688111]
[1754724242413,0.49310471,116950.0,116940.0,1.2060444]
[1754724242814,0.49310471,116950.0,116940.0,1.46688111]
[1754724243215,0.49310471,116950.0,116940.0,1.43633947]
[1754724244911,0.49310471,116950.0,116940.0,1.17550276]
[1754724245214,0.49310471,116950.0,116940.0,1.43633947]
[1754724247126,0.49310471,116950.0,116940.0,0.65485947]
[1754724247322,0.49310471,116950.0,116940.0,1.44389947]
[1754724247524,0.232268,116950.0,116940.0,1.44389947]
[1754724247826,0.49310471,116950.0,116940.0,1.44389947]
[1754724249021,0.49310471,116950.0,116940.0,1.18306276]
[1754724249325,0.49310471,116950.0,116940.0,1.44389947]
[1754724249723,0.49310471,116950.0,116940.0,0.07671836]
[1754724249922,1.30023472,116950.0,116940.0,0.95081896]
[1754724250122,1.30023472,116950.0,116940.0,0.8741006]
[1754724250323,1.20023472,116950.0,116940.0,0.95081896]
[1754724251126,1.20223472,116950.0,116940.0,0.95081896]
[1754724251326,1.20323472,116950.0,116940.0,0.8741006]
[1754724253028,1.20123472,116950.0,116940.0,0.8741006]
[1754724253226,1.20023472,116950.0,116940.0,0.8740606]
[1754724253529,1.47125872,116950.0,116940.0,0.8737806]
[1754724253729,1.73209543,116950.0,116940.0,0.8737806]
[1754724254031,1.47125872,116950.0,116940.0,0.8737806]
[1754724254730,1.47625872,116950.0,116940.0,0.8737806]
[1754724255124,1.47625872,116950.0,116930.0,0.25663975]
[1754724255125,1.64725622,116950.0,116930.0,0.25663975]
[1754724255328,1.01508402,116940.0,116930.0,0.25663975]
[1754724255530,1.08485402,116940.0,116930.0,1.04479975]
[1754724256328,1.08485402,116940.0,116930.0,0.25663975]
[1754724256528,1.08485402,116940.0,116930.0,1.04459975]
[1754724256832,1.08685402,116940.0,116930.0,1.04459975]
[1754724257828,1.08785402,116940.0,116930.0,1.04459975]
[1754724258229,1.08785402,116940.0,116930.0,1.04463975]
[1754724258632,1.08785402,116940.0,116930.0,0.25663975]
[1754724258826,1.08785402,116940.0,116930.0,1.04443975]
[1754724260231,1.46360873,116940.0,116930.0,0.87355025]
[1754724260833,1.20277202,116940.0,116930.0,0.87355025]
[1754724261630,0.0855152,116920.0,116910.0,0.256562]
[1754724261936,0.72406862,116920.0,116910.0,1.044242]
[1754724262836,0.72406862,116920.0,116910.0,1.045242]
[1754724263032,0.72406862,116920.0,116910.0,0.9597195]
[1754724263236,1.08486862,116920.0,116910.0,0.9607195]
[1754724265433,1.19978662,116920.0,116910.0,0.9607195]
[1754724267338,1.20841292,116920.0,116910.0,0.9607195]
[1754724268040,0.84761292,116920.0,116910.0,0.9607195]
[1754724268239,1.20841292,116920.0,116910.0,0.9607195]
[1754724268838,1.20841292,116920.0,116910.0,0.1730395]
[1754724269037,1.20841292,116920.0,116910.0,0.79004]
[1754724269234,1.20841292,116920.0,116910.0,0.8755622]
[1754724271135,0.6867395,116920.0,116910.0,0.8755622]
[1754724271337,1.20841292,116920.0,116910.0,0.8755622]
[1754724273333,1.27835429,116920.0,116910.0,0.8755622]
[1754724276942,0.75668087,116920.0,116910.0,0.8755622]
[1754724277142,1.27835429,116920.0,116910.0,0.8755622]
[1754724281642,0.75668087,116920.0,116910.0,0.8755622]
[1754724281832,1.27835429,116920.0,116910.0,0.8755622]
[1754724282038,0.75668087,116920.0,116910.0,0.8755622]
[1754724282339,1.27835429,116920.0,116910.0,0.8755622]
[1754724285948,1.20841292,116920.0,116910.0,0.8755622]
[1754724290553,0.6867395,116920.0,116910.0,0.8755622]
[1754724290754,1.20841292,116920.0,116910.0,0.8755622]
[1754724292053,1.27550178,116920.0,116910.0,0.8755622]
[1754724297358,1.27550178,116920.0,116910.0,0.95209536]
[1754724298360,0.75382836,116920.0,116910.0,0.95209536]
[1754724298560,1.27550178,116920.0,116910.0,0.95209536]
[1754724304067,0.91470178,116920.0,116910.0,0.95209536]
[1754724304268,1.27550178,116920.0,116910.0,0.95209536]
[1754724306068,0.75382836,116920.0,116910.0,0.95209536]
[1754724306261,1.27550178,116920.0,116910.0,0.95209536]
[1754724308166,1.20841292,116920.0,116910.0,0.95209536]
[1754724315770,0.84761292,116920.0,116910.0,0.95209536]
[1754724315975,1.20841292,116920.0,116910.0,0.95209536]
[1754724317481,0.6867395,116920.0,116910.0,0.95209536]
[1754724317780,1.20841292,116920.0,116910.0,0.95209536]
[1754724320684,0.84761292,116920.0,116910.0,0.95209536]
[1754724320872,1.20841292,116920.0,116910.0,0.95209536]
[1754724322187,1.20841292,116920.0,116910.0,0.8755622]
[1754724332991,1.20841292,116920.0,116910.0,0.95209536]
[1754724345298,1.20841292,116920.0,116910.0,0.8755622]
[1754724352507,1.20841292,116920.0,116910.0,0.95209536]
[1754724362708,1.24251292,116920.0,116910.0,0.95209536]
[1754724363308,0.7208395,116920.0,116910.0,0.95209536]
[1754724363505,1.24251292,116920.0,116910.0,0.95209536]
[1754724368415,1.24251292,116920.0,116910.0,0.8755622]
[1754724370116,1.24251242,116920.0,116910.0,0.8755622]
[1754724370416,1.24251242,116920.0,116910.0,1.13639891]
[1754724370616,0.7122127,116920.0,116910.0,1.13639891]
[1754724370814,1.23388612,116920.0,116910.0,1.13639891]
[1754724372416,1.18783612,116920.0,116910.0,1.13639891]
[1754724372622,0.87988941,116920.0,116910.0,0.8755622]
[1754724372822,0.87988941,116920.0,116910.0,1.13639891]
[1754724373217,0.95295941,116920.0,116910.0,1.13639891]
[1754724373522,1.23505612,116920.0,116910.0,1.13639891]
[1754724376125,0.7133827,116920.0,116910.0,1.13639891]
[1754724376522,1.23505612,116920.0,116910.0,1.13639891]
[1754724377024,0.87425612,116920.0,116910.0,1.13639891]
[1754724377326,0.61341941,116920.0,116910.0,1.13639891]
[1754724378322,0.52790471,116920.0,116910.0,1.13639891]
[1754724378530,0.47936471,116920.0,116910.0,1.49719891]
[1754724379226,0.51347471,116920.0,116910.0,1.49719891]
[1754724379625,0.52790471,116920.0,116910.0,1.49719891]
[1754724380330,0.267068,116920.0,116910.0,1.51440043]
[1754724380526,0.52790471,116920.0,116910.0,1.51440043]
[1754724380730,0.43357471,116920.0,116910.0,1.51440043]
[1754724380929,0.149018,116920.0,116910.0,1.51440043]
[1754724381134,0.149018,116920.0,116910.0,1.77523714]
[1754724381336,0.149018,116920.0,116910.0,1.62166043]
[1754724382736,0.173188,116920.0,116910.0,1.62166043]
[1754724383234,0.173188,116920.0,116910.0,1.88249714]
[1754724383444,0.149018,116920.0,116910.0,1.88249714]
[1754724384539,0.149018,116920.0,116910.0,2.05356114]
[1754724386144,0.149018,116920.0,116910.0,1.53188772]
[1754724386443,0.149018,116920.0,116910.0,2.05356114]
[1754724387042,0.149018,116920.0,116910.0,1.79272443]
[1754724387241,0.149018,116920.0,116910.0,1.68546443]
[1754724387443,0.173188,116920.0,116910.0,1.68546443]
[1754724389148,0.173188,116920.0,116910.0,1.51440043]
[1754724389442,0.173188,116920.0,116910.0,1.68546443]
[1754724389643,0.173188,116920.0,116910.0,1.94630114]
[1754724390240,0.173188,116920.0,116910.0,2.05352207]
[1754724392949,0.173188,116920.0,116910.0,1.88245807]
[1754724393142,0.173188,116920.0,116910.0,2.05352207]
[1754724395445,0.173188,116920.0,116910.0,1.88245807]
[1754724396440,0.149018,116920.0,116910.0,1.88245807]
[1754724396841,0.149018,116920.0,116910.0,1.77523714]
[1754724397344,0.172298,116920.0,116910.0,1.77523714]
[1754724398846,0.172298,116920.0,116910.0,2.04233714]
[1754724400539,0.1381861,116920.0,116910.0,2.04233714]
[1754724400741,0.0511338,116920.0,116910.0,2.14953681]
[1754724401239,0.07040865,116930.0,116910.0,2.29889874]
[1754724401446,0.07040865,116930.0,116920.0,1.07518046]
[1754724403440,0.09619865,116930.0,116920.0,1.07518046]
[1754724403650,0.09619865,116930.0,116920.0,1.07718046]
[1754724404149,0.21111665,116930.0,116920.0,1.07718046]
[1754724405046,0.23363665,116930.0,116920.0,1.07718046]
[1754724406845,0.13832665,116930.0,116920.0,1.07718046]
[1754724407646,0.13832665,116930.0,116920.0,1.07918046]
[1754724409854,0.16411665,116930.0,116920.0,1.07918046]
[1754724410053,0.21111665,116930.0,116920.0,1.07918046]
[1754724410647,0.21111665,116930.0,116920.0,0.97198802]
[1754724410852,0.21111665,116930.0,116920.0,1.07927092]
[1754724412756,0.21111665,116930.0,116920.0,0.97198802]
[1754724412951,0.23363665,116930.0,116920.0,0.97198802]
[1754724413555,0.23363665,116930.0,116920.0,1.07928925]
[1754724414854,0.13832665,116930.0,116920.0,1.07928925]
[1754724415453,0.06846885,116930.0,116920.0,1.10256925]
[1754724415650,0.04411985,116930.0,116920.0,1.01121802]
[1754724415846,0.07947,116940.0,116920.0,1.18224252]
[1754724416050,0.09531,116940.0,116930.0,1.62071379]
[1754724416442,0.09531,116940.0,116930.0,1.51342401]
[1754724417250,0.09531,116940.0,116930.0,1.51442401]
[1754724417452,0.11859,116940.0,116930.0,1.51442401]
[1754724418156,0.11859,116940.0,116930.0,1.51542401]
[1754724418957,0.233508,116940.0,116930.0,1.51542401]
[1754724419156,0.233508,116940.0,116930.0,1.59203881]
[1754724419360,0.233508,116940.0,116930.0,1.60082335]
[1754724420849,0.233508,116940.0,116930.0,1.86166006]
[1754724421356,0.233508,116940.0,116930.0,1.33998664]
[1754724421545,0.233508,116940.0,116930.0,1.60082335]
[1754724422351,0.0635132,116940.0,116930.0,1.78504526]
[1754724422554,0.0635132,116940.0,116930.0,2.05214526]
[1754724422760,0.034787,116940.0,116930.0,2.05214526]
[1754724422949,0.034787,116940.0,116930.0,2.06946374]
[1754724426760,0.034787,116940.0,116930.0,3.25226374]
[1754724427662,0.057417,116940.0,116930.0,3.25226374]
[1754724429151,0.057417,116940.0,116930.0,3.35948706]
[1754724434659,0.034787,116940.0,116930.0,3.43608945]
[1754724434858,0.034787,116940.0,116930.0,3.32886613]
[1754724435353,0.057417,116940.0,116930.0,3.32886613]
[1754724437464,0.034787,116940.0,116930.0,3.32886613]
[1754724437667,0.034787,116940.0,116930.0,3.25262374]
[1754724439269,0.034787,116940.0,116930.0,3.35984706]
[1754724439568,0.034787,116940.0,116930.0,3.25262374]
[1754724442870,0.034787,116940.0,116930.0,3.40671916]
[1754724444968,0.02263,116950.0,116940.0,0.1010799]
[1754724444969,0.05459,116950.0,116940.0,0.1010799]
[1754724445175,0.10241,116950.0,116940.0,1.00683332]
[1754724445375,0.36574671,116960.0,116940.0,1.15454842]
[1754724445677,0.35900671,116960.0,116950.0,1.23658732]
[1754724446268,0.38163671,116960.0,116950.0,1.23658732]
[1754724447077,0.1218,116960.0,116950.0,1.23658732]
[1754724447571,0.38463671,116960.0,116950.0,1.23658732]
[1754724447768,0.1238,116960.0,116950.0,1.23658732]
[1754724447974,0.1238,116960.0,116950.0,1.59738732]
[1754724448173,0.237718,116960.0,116950.0,1.59738732]
[1754724448574,0.236718,116960.0,116950.0,1.67401953]
[1754724448762,0.236718,116960.0,116950.0,1.56672152]
[1754724448966,0.236718,116960.0,116950.0,1.63614573]
[1754724453779,0.150518,116960.0,116950.0,1.63614573]
[1754724453970,0.236718,116960.0,116950.0,1.63614573]
[1754724454370,0.236718,116960.0,116950.0,1.37530902]
[1754724454570,0.188898,116960.0,116950.0,1.89698244]
[1754724455077,0.141048,116960.0,116950.0,1.82035023]
[1754724455273,0.138548,116960.0,116950.0,1.82035023]
[1754724455477,0.138548,116960.0,116950.0,1.92764824]
[1754724456677,0.138548,116960.0,116950.0,1.14468824]
[1754724456879,0.138548,116960.0,116950.0,1.92752824]
[1754724459182,0.138548,116960.0,116950.0,1.82023023]
[1754724460474,0.138548,116960.0,116950.0,1.92741956]
[1754724462375,0.138548,116960.0,116950.0,1.56661956]
[1754724462676,0.138548,116960.0,116950.0,1.92741956]
[1754724463079,0.138548,116960.0,116950.0,1.40574614]
[1754724463378,0.232978,116960.0,116950.0,1.66658285]
[1754724463683,0.232978,116960.0,116950.0,1.40574614]
[1754724463982,0.232978,116960.0,116950.0,1.66658285]
[1754724464780,0.232978,116960.0,116950.0,1.55939352]
[1754724464983,0.219268,116960.0,116950.0,1.82023023]
[1754724465384,0.232978,116960.0,116950.0,1.82023023]
[1754724465687,0.232978,116960.0,116950.0,1.55939352]
[1754724466883,0.232978,116960.0,116950.0,1.82023023]
[1754724467785,0.232978,116960.0,116950.0,1.55939352]
[1754724470680,0.199908,116960.0,116950.0,1.55939352]
[1754724470887,0.186198,116960.0,116950.0,1.82023023]
[1754724471586,0.232978,116960.0,116950.0,1.82023023]
[1754724472486,0.232978,116960.0,116950.0,1.55939352]
[1754724474783,0.232978,116960.0,116950.0,1.82023023]
[1754724482493,0.115918,116960.0,116950.0,1.82023023]
[1754724482700,0.138708,116960.0,116950.0,1.82023023]
[1754724483099,0.147958,116960.0,116950.0,1.82023023]
[1754724483304,0.233138,116960.0,116950.0,1.82023023]
[1754724484101,0.232138,116960.0,116950.0,1.82023023]
[1754724484295,0.232138,116960.0,116950.0,1.82123023]
[1754724485299,0.232138,116960.0,116950.0,1.82223023]
[1754724491315,0.232138,116960.0,116950.0,1.97632565]
[1754724491716,0.232138,116960.0,116950.0,2.08365112]
[1754724492118,0.232138,116960.0,116950.0,1.9295557]
[1754724495519,0.232138,116960.0,116950.0,1.40788228]
[1754724495723,0.232138,116960.0,116950.0,1.9295557]
[1754724497719,0.232138,116960.0,116950.0,1.5687557]
[1754724498019,0.232138,116960.0,116950.0,1.9295557]
[1754724499221,0.232138,116960.0,116950.0,1.40788228]
[1754724499422,0.232138,116960.0,116950.0,1.9295557]
[1754724500221,0.232138,116960.0,116950.0,1.82223023]
[1754724501624,0.232138,116960.0,116950.0,1.92954117]
[1754724501928,0.232138,116960.0,116950.0,1.82223023]
[1754724503022,0.232138,116960.0,116950.0,1.46143023]
[1754724503223,0.232138,116960.0,116950.0,1.82223023]
[1754724506425,0.185358,116960.0,116950.0,1.82223023]
[1754724507128,0.163308,116960.0,116950.0,1.82223023]
[1754724507525,0.146958,116960.0,116950.0,1.82223023]
[1754724508321,0.137708,116960.0,116950.0,1.82223023]
[1754724513428,0.114918,116960.0,116950.0,1.82223023]
[1754724514533,0.138568,116960.0,116950.0,1.82223023]
[1754724517628,0.138568,116960.0,116950.0,1.97632565]
[1754724518023,0.138568,116960.0,116950.0,1.61552565]
[1754724518230,0.138568,116960.0,116950.0,1.97632565]
[1754724518427,0.138568,116960.0,116950.0,1.82223023]
[1754724521636,0.138568,116960.0,116950.0,1.30055681]
[1754724521937,0.138568,116960.0,116950.0,1.82223023]
[1754724525541,0.138568,116960.0,116950.0,1.30055681]
[1754724525732,0.138568,116960.0,116950.0,1.82223023]
[1754724527537,0.138568,116960.0,116950.0,3.00475023]
[1754724527739,0.138568,116960.0,116950.0,3.11205251]
[1754724534842,0.138568,116960.0,116950.0,3.00475023]
[1754724538039,0.138568,116960.0,116950.0,2.64395023]
[1754724538245,0.138568,116960.0,116950.0,3.00475023]
[1754724539345,0.138568,116960.0,116950.0,3.15884565]
[1754724540145,0.138568,116960.0,116950.0,3.00475023]
[1754724540534,0.194338,116960.0,116950.0,3.00475023]
[1754724541740,0.194338,116960.0,116950.0,2.91925763]
[1754724542145,0.194338,116960.0,116950.0,2.39758421]
[1754724542349,0.194338,116960.0,116950.0,2.91925763]
[1754724543446,0.194338,116960.0,116950.0,2.39758421]
[1754724543647,0.194338,116960.0,116950.0,2.91925763]
[1754724545049,0.114918,116960.0,116950.0,2.91925763]
[1754724547345,0.139788,116960.0,116950.0,2.91925763]
[1754724550551,0.139788,116960.0,116950.0,3.07335305]
[1754724552646,0.114918,116960.0,116950.0,3.07335305]
[1754724552949,0.139788,116960.0,116950.0,3.07335305]
[1754724555351,0.139788,116960.0,116950.0,2.91925763]
[1754724556450,0.139788,116960.0,116950.0,3.18635763]
[1754724557654,0.114918,116960.0,116950.0,3.18635763]
[1754724559453,0.114918,116960.0,116950.0,3.34045305]
[1754724560454,0.114918,116960.0,116950.0,3.48255305]
[1754724561454,0.139788,116960.0,116950.0,3.48255305]
[1754724563456,0.139788,116960.0,116950.0,3.32845763]
[1754724564961,0.139788,116960.0,116950.0,2.80678421]
[1754724565159,0.139788,116960.0,116950.0,3.32845763]
[1754724569762,0.139788,116960.0,116950.0,2.80678421]
[1754724569962,0.139788,116960.0,116950.0,3.32845763]
[1754724575663,0.139788,116960.0,116950.0,3.58929434]
[1754724578359,0.139788,116960.0,116950.0,3.32219434]
[1754724578859,0.139788,116960.0,116950.0,3.47628976]
[1754724585672,0.139788,116960.0,116950.0,3.56178036]
[1754724587369,0.139788,116960.0,116950.0,2.77894036]
[1754724587568,0.139788,116960.0,116950.0,3.56494036]
[1754724587868,0.139788,116960.0,116950.0,3.30410365]
[1754724588072,0.139788,116960.0,116950.0,3.56494036]
[1754724589168,0.139788,116960.0,116950.0,1.99643023]
[1754724589466,0.139788,116960.0,116950.0,3.30410365]
[1754724590466,0.139788,116960.0,116950.0,2.78243023]
[1754724590663,0.139788,116960.0,116950.0,3.30410365]
[1754724595672,0.139788,116960.0,116950.0,3.56494036]
[1754724596275,0.139788,116960.0,116950.0,3.30410365]
[1754724596473,0.139788,116960.0,116950.0,3.15000823]
[1754724597076,0.139788,116960.0,116950.0,3.41710823]
[1754724598976,0.139788,116960.0,116950.0,3.57120365]
[1754724599681,0.139788,116960.0,116950.0,3.41710823]
[1754724600272,0.139788,116960.0,116950.0,2.37027152]
[1754724600576,0.139788,116960.0,116950.0,3.41702823]
[1754724603581,0.13608355,116960.0,116950.0,3.41702823]
[1754724603770,0.13608355,116960.0,116950.0,3.57112365]
[1754724605382,0.13608355,116960.0,116950.0,3.41702823]
[1754724608584,0.13608355,116960.0,116950.0,3.57112365]
[1754724610789,0.13608355,116960.0,116950.0,3.83196036]
[1754724612784,0.13608355,116960.0,116950.0,3.67786494]
[1754724614289,0.13608355,116960.0,116950.0,3.83196036]
[1754724620692,0.13608355,116960.0,116950.0,3.67786494]
[1754724622499,0.13608355,116960.0,116950.0,2.89194494]
[1754724622693,0.13608355,116960.0,116950.0,3.67778494]
[1754724626002,0.11121355,116960.0,116950.0,3.67778494]
[1754724626300,0.13498355,116960.0,116950.0,3.78505149]
[1754724627000,0.11121355,116960.0,116950.0,3.78505149]
[1754724627201,0.13498355,116960.0,116950.0,3.78505149]